[Event "Hoogeveen Open 2023"]
[Site "Hoogeveen, Netherlands"]
[Date "2023.10.28"]
[Round "9.13"]
[White "Margadgua, Erdenebayar"]
[Black "Fehr, Axel"]
[Result "1/2-1/2"]
[TimeControl "90min/40moves + 30min + 30sec/move"]
[WhiteFideId "4904052"]
[BlackFideId "4675185"]
[WhiteElo "1848"]
[BlackElo "2011"]

1. e4 {[%clk 01:30:58]} c5 {[%clk 01:30:52]} 2. Nc3 {[%clk 01:31:10]} e6 {[%clk
01:30:19]} 3. f4 {[%clk 01:31:25]} d5 {[%clk 01:30:17]} 4. Nf3 {[%clk
01:31:44]} Nc6 {[%clk 01:28:01]} 5. Bb5 {[%clk 01:31:57]} Nge7 {[%clk
01:28:16]} 6. exd5 {[%clk 01:30:36]} exd5 {[%clk 01:28:19]} 7. Qe2 {[%clk
01:31:00]} Qd6 {[%clk 01:22:16]} 8. Ne5 {[%clk 01:19:42]} Be6 {[%clk 01:13:22]}
9. O-O {[%clk 01:13:24]} g6 {[%clk 00:56:33]} 10. Bxc6+ {[%clk 01:04:10]} bxc6
{[%clk 00:51:39]} 11. Qa6 {[%clk 01:03:41]} Bc8 {[%clk 00:51:17]} 12. Qe2
{[%clk 01:00:32]} Bg7 {[%clk 00:48:42]} 13. d3 {[%clk 00:57:24]} {[%emt
00:00:31]} O-O {[%clk 00:47:48]} {[%emt 00:01:23]} 14. Qf2 {[%clk 00:55:09]}
{[%emt 00:02:47]} Nf5 {[%clk 00:42:14]} {[%emt 00:06:01]} 15. Na4 {[%clk
00:50:25]} {[%emt 00:05:14]} f6 {[%clk 00:25:29]} {[%emt 00:17:15]} 16. Nf3
{[%clk 00:47:38]} {[%emt 00:03:18]} d4 {[%clk 00:22:45]} {[%emt 00:03:13]} 17.
Nd2 {[%clk 00:36:47]} {[%emt 00:11:22]} Ne3 {[%clk 00:17:08]} {[%emt 00:06:06]}
18. Ne4 {[%clk 00:36:42]} {[%emt 00:00:35]} Qe7 {[%clk 00:17:28]} {[%emt
00:00:10]} 19. Bxe3 {[%clk 00:33:02]} {[%emt 00:04:10]} dxe3 {[%clk 00:17:44]}
{[%emt 00:00:14]} 20. Qxe3 {[%clk 00:33:24]} {[%emt 00:00:09]} f5 {[%clk
00:08:49]} {[%emt 00:09:24]} 21. Qxc5 {[%clk 00:33:07]} {[%emt 00:00:48]} Qd7
{[%clk 00:04:34]} {[%emt 00:04:46]} 22. Qc4+ {[%clk 00:31:43]} {[%emt
00:01:54]} Kh8 {[%clk 00:04:27]} {[%emt 00:00:36]} 23. Ng5 {[%clk 00:30:54]}
{[%emt 00:01:19]} h6 {[%clk 00:03:21]} {[%emt 00:01:36]} 24. Nf3 {[%clk
00:31:16]} {[%emt 00:00:07]} Qd6 {[%clk 00:03:08]} {[%emt 00:00:43]} 25. Rae1
{[%clk 00:30:32]} {[%emt 00:01:14]} Rb8 {[%clk 00:03:21]} {[%emt 00:00:18]} 26.
c3 {[%clk 00:27:16]} {[%emt 00:03:47]} c5 {[%clk 00:02:21]} {[%emt 00:01:29]}
27. Nxc5 {[%clk 00:24:59]} {[%emt 00:02:47]} Rxb2 {[%clk 00:02:42]} {[%emt
00:00:09]} 28. Rf2 {[%clk 00:23:08]} {[%emt 00:02:21]} Qb6 {[%clk 00:02:20]}
{[%emt 00:00:52]} 29. Rxb2 {[%clk 00:22:41]} {[%emt 00:00:57]} Qxb2 {[%clk
00:02:47]} {[%emt 00:00:03]} 30. d4 {[%clk 00:23:09]} {[%emt 00:00:02]} Qb6
{[%clk 00:02:27]} {[%emt 00:00:50]} 31. h3 {[%clk 00:20:51]} {[%emt 00:02:48]}
Qd6 {[%clk 00:02:15]} {[%emt 00:00:42]} 32. Ne5 {[%clk 00:21:03]} {[%emt
00:00:18]} Kh7 {[%clk 00:02:18]} {[%emt 00:00:27]} 33. Re3 {[%clk 00:16:45]}
{[%emt 00:04:49]} g5 {[%clk 00:02:26]} {[%emt 00:00:21]} 34. fxg5 {[%clk
00:10:19]} {[%emt 00:06:55]} hxg5 {[%clk 00:02:45]} {[%emt 00:00:11]} 35. Nf3
{[%clk 00:10:35]} {[%emt 00:00:15]} Qf4 {[%clk 00:02:57]} {[%emt 00:00:19]} 36.
Re7 {[%clk 00:08:54]} {[%emt 00:02:10]} g4 {[%clk 00:03:03]} {[%emt 00:00:23]}
37. Nd3 {[%clk 00:04:30]} {[%emt 00:04:55]} Qh6 {[%clk 00:01:38]} {[%emt
00:01:55]} 38. hxg4 {[%clk 00:04:17]} {[%emt 00:00:44]} fxg4 {[%clk 00:02:00]}
{[%emt 00:00:07]} 39. Nfe5 {[%clk 00:02:34]} {[%emt 00:02:14]} Qe3+ {[%clk
00:02:04]} {[%emt 00:00:24]} 40. Kh2 {[%clk 00:03:00]} {[%emt 00:00:05]} Qh6+
{[%clk 00:02:06]} {[%emt 00:00:28]} 41. Kg3 {[%clk 00:30:27]} {[%emt 00:03:03]}
1/2-1/2

[Event "Hoogeveen Open 2023"]
[Site "Hoogeveen, Netherlands"]
[Date "2023.10.28"]
[Round "9.14"]
[White "Kett, Tim"]
[Black "Nijdam, Brian"]
[Result "1-0"]
[TimeControl "90min/40moves + 30min + 30sec/move"]
[WhiteFideId "1801210"]
[BlackFideId "1081020"]
[WhiteElo "2130"]
[BlackElo "1918"]

1. e4 {[%clk 01:30:30]} {[%emt 00:00:28]} c5 {[%clk 01:30:53]} {[%emt
00:00:08]} 2. Nc3 {[%clk 01:30:38]} {[%emt 00:00:22]} g6 {[%clk 01:30:48]}
{[%emt 00:00:35]} 3. f4 {[%clk 01:29:20]} {[%emt 00:01:47]} Bg7 {[%clk
01:30:54]} {[%emt 00:00:25]} 4. Nf3 {[%clk 01:29:39]} {[%emt 00:00:11]} Nc6
{[%clk 01:31:09]} {[%emt 00:00:15]} 5. Bb5 {[%clk 01:27:37]} {[%emt 00:02:30]}
Nd4 {[%clk 01:31:09]} {[%emt 00:00:31]} 6. O-O {[%clk 01:26:50]} {[%emt
00:01:17]} Nxb5 {[%clk 01:31:33]} {[%emt 00:00:07]} 7. Nxb5 {[%clk 01:27:14]}
{[%emt 00:00:06]} d5 {[%clk 01:31:52]} {[%emt 00:00:11]} 8. d3 {[%clk
01:25:15]} {[%emt 00:02:28]} a6 {[%clk 01:25:14]} {[%emt 00:07:09]} 9. Nc3
{[%clk 01:25:30]} {[%emt 00:00:15]} e6 {[%clk 01:19:09]} {[%emt 00:06:35]} 10.
Qe1 {[%clk 01:23:23]} {[%emt 00:02:36]} Ne7 {[%clk 01:18:53]} {[%emt 00:00:47]}
11. Qh4 {[%clk 01:22:20]} {[%emt 00:01:32]} O-O {[%clk 01:07:18]} {[%emt
00:12:06]} 12. f5 {[%clk 01:16:31]} {[%emt 00:06:18]} exf5 {[%clk 00:55:02]}
{[%emt 00:12:47]} 13. Bh6 {[%clk 01:00:00]} {[%emt 00:16:59]} f6 {[%clk
00:46:20]} {[%emt 00:09:14]} 14. e5 {[%clk 00:54:28]} {[%emt 00:06:01]} g5
{[%clk 00:39:45]} {[%emt 00:07:06]} 15. Qh5 {[%clk 00:53:43]} {[%emt 00:01:14]}
Qe8 {[%clk 00:35:43]} {[%emt 00:04:33]} 16. Qxe8 {[%clk 00:54:00]} {[%emt
00:00:13]} Rxe8 {[%clk 00:36:06]} {[%emt 00:00:05]} 17. exf6 {[%clk 00:53:36]}
{[%emt 00:00:55]} Bxh6 {[%clk 00:33:45]} {[%emt 00:02:51]} 18. Rae1 {[%clk
00:52:40]} {[%emt 00:01:26]} Kf7 {[%clk 00:29:56]} {[%emt 00:04:20]} 19. fxe7
{[%clk 00:51:11]} {[%emt 00:01:58]} Be6 {[%clk 00:28:16]} {[%emt 00:02:10]} 20.
g4 {[%clk 00:46:30]} {[%emt 00:05:10]} f4 {[%clk 00:27:24]} {[%emt 00:01:24]}
21. Re5 {[%clk 00:41:49]} {[%emt 00:05:09]} Rxe7 {[%clk 00:24:11]} {[%emt
00:03:44]} 22. Nxd5 {[%clk 00:38:38]} {[%emt 00:03:41]} Bxd5 {[%clk 00:23:49]}
{[%emt 00:00:52]} 23. Rxd5 {[%clk 00:38:49]} {[%emt 00:00:19]} Bg7 {[%clk
00:15:34]} {[%emt 00:08:45]} 24. Rf5+ {[%clk 00:34:58]} {[%emt 00:04:21]} Bf6
{[%clk 00:14:15]} {[%emt 00:01:50]} 25. Nxg5+ {[%clk 00:34:54]} {[%emt
00:00:34]} Kg6 {[%clk 00:14:24]} {[%emt 00:00:21]} 26. Nh3 {[%clk 00:31:49]}
{[%emt 00:03:34]} Bxb2 {[%clk 00:11:36]} {[%emt 00:03:19]} 27. Nxf4+ {[%clk
00:32:08]} {[%emt 00:00:10]} Kg7 {[%clk 00:11:29]} {[%emt 00:00:37]} 28. Kg2
{[%clk 00:26:59]} {[%emt 00:05:38]} Bd4 {[%clk 00:11:42]} {[%emt 00:00:17]} 29.
h4 {[%clk 00:26:27]} {[%emt 00:01:02]} Rae8 {[%clk 00:08:57]} {[%emt 00:03:17]}
30. Nh5+ {[%clk 00:23:39]} {[%emt 00:03:16]} Kg8 {[%clk 00:09:18]} {[%emt
00:00:10]} 31. Nf6+ {[%clk 00:19:26]} {[%emt 00:04:43]} Bxf6 {[%clk 00:09:41]}
{[%emt 00:00:07]} 32. Rxf6 {[%clk 00:19:54]} {[%emt 00:00:02]} Kg7 {[%clk
00:08:54]} {[%emt 00:01:17]} 33. g5 {[%clk 00:20:06]} {[%emt 00:00:17]} Re2+
{[%clk 00:09:14]} {[%emt 00:00:12]} 34. R1f2 {[%clk 00:20:28]} {[%emt
00:00:07]} Rxf2+ {[%clk 00:09:10]} {[%emt 00:00:35]} 35. Kxf2 {[%clk 00:20:42]}
{[%emt 00:00:15]} Re5 {[%clk 00:08:59]} {[%emt 00:00:41]} 36. Rb6 {[%clk
00:19:42]} {[%emt 00:01:30]} Re7 {[%clk 00:08:31]} {[%emt 00:00:59]} 37. Kf3
{[%clk 00:19:45]} {[%emt 00:00:27]} Kf7 {[%clk 00:08:23]} {[%emt 00:00:38]} 38.
h5 {[%clk 00:19:43]} {[%emt 00:00:31]} Ke8 {[%clk 00:07:59]} {[%emt 00:00:55]}
39. Kf4 {[%clk 00:19:31]} {[%emt 00:00:41]} Kf7 {[%clk 00:06:59]} {[%emt
00:01:31]} 40. Kf5 {[%clk 00:19:45]} {[%emt 00:00:16]} Rd7 {[%clk 00:06:55]}
{[%emt 00:00:33]} 41. c4 {[%clk 00:19:34]} {[%emt 00:00:41]} Re7 {[%clk
00:06:25]} {[%emt 00:01:01]} 42. a4 {[%clk 00:19:20]} {[%emt 00:00:43]} Kg7
{[%clk 00:06:31]} {[%emt 00:00:25]} 43. a5 {[%clk 00:18:20]} {[%emt 00:01:30]}
Kf7 {[%clk 00:06:41]} {[%emt 00:00:19]} 44. Rf6+ {[%clk 00:12:41]} {[%emt
00:06:08]} Kg7 {[%clk 00:06:08]} {[%emt 00:01:03]} 45. Re6 {[%clk 00:09:21]}
{[%emt 00:03:50]} Rd7 {[%clk 00:06:13]} {[%emt 00:00:26]} 46. Ke5 {[%clk
00:09:42]} {[%emt 00:00:10]} Rxd3 {[%clk 00:04:04]} {[%emt 00:02:38]} 47. Re7+
{[%clk 00:10:07]} {[%emt 00:00:05]} Kg8 {[%clk 00:04:14]} {[%emt 00:00:20]} 48.
Rxb7 {[%clk 00:10:31]} {[%emt 00:00:06]} Rg3 {[%clk 00:04:13]} {[%emt
00:00:31]} 49. Kf6 {[%clk 00:10:00]} {[%emt 00:01:01]} Rf3+ {[%clk 00:04:24]}
{[%emt 00:00:19]} 50. Ke6 {[%clk 00:10:26]} {[%emt 00:00:05]} Re3+ {[%clk
00:04:00]} {[%emt 00:00:54]} 51. Kd6 {[%clk 00:10:05]} {[%emt 00:00:49]} Rg3
{[%clk 00:03:31]} {[%emt 00:01:00]} 52. Kxc5 {[%clk 00:10:03]} {[%emt
00:00:32]} Rxg5+ {[%clk 00:03:52]} {[%emt 00:00:09]} 53. Kb6 {[%clk 00:10:26]}
{[%emt 00:00:07]} Rxh5 {[%clk 00:03:34]} {[%emt 00:00:48]} 54. c5 {[%clk
00:10:02]} {[%emt 00:00:53]} Kf8 {[%clk 00:03:00]} {[%emt 00:01:05]} 55. c6
{[%clk 00:09:35]} {[%emt 00:00:57]} Ke8 {[%clk 00:01:29]} {[%emt 00:02:02]} 56.
Rb8+ {[%clk 00:09:16]} {[%emt 00:00:48]} 1-0

[Event "Hoogeveen Open 2023"]
[Site "Hoogeveen, Netherlands"]
[Date "2023.10.28"]
[Round "9.15"]
[White "Duchene, Rene"]
[Black "Boeren, Jurriaan"]
[Result "0-1"]
[TimeControl "90min/40moves + 30min + 30sec/move"]
[WhiteFideId "1006304"]
[BlackFideId "1067478"]
[WhiteElo "2065"]
[BlackElo "2120"]

1. d4 {[%clk 01:30:51]} {[%emt 00:00:08]} d5 {[%clk 01:30:55]} {[%emt
00:00:06]} 2. c4 {[%clk 01:31:00]} {[%emt 00:00:20]} e6 {[%clk 01:31:22]}
{[%emt 00:00:03]} 3. Nf3 {[%clk 01:31:09]} {[%emt 00:00:21]} Nf6 {[%clk
01:31:45]} {[%emt 00:00:06]} 4. g3 {[%clk 01:31:34]} {[%emt 00:00:05]} dxc4
{[%clk 01:32:11]} {[%emt 00:00:05]} 5. Bg2 {[%clk 01:31:41]} {[%emt 00:00:23]}
c5 {[%clk 01:32:36]} {[%emt 00:00:05]} 6. O-O {[%clk 01:30:13]} {[%emt
00:01:57]} Nc6 {[%clk 01:32:58]} {[%emt 00:00:09]} 7. Ne5 {[%clk 01:29:55]}
{[%emt 00:00:47]} Bd7 {[%clk 01:33:09]} {[%emt 00:00:20]} 8. Na3 {[%clk
01:23:55]} {[%emt 00:06:31]} cxd4 {[%clk 01:32:42]} {[%emt 00:00:58]} 9. Naxc4
{[%clk 01:23:05]} {[%emt 00:01:19]} Be7 {[%clk 01:32:36]} {[%emt 00:00:35]} 10.
Qb3 {[%clk 01:14:10]} {[%emt 00:09:26]} Qc7 {[%clk 01:31:20]} {[%emt 00:01:45]}
11. Bf4 {[%clk 00:59:29]} {[%emt 00:15:12]} Nh5 {[%clk 01:31:13]} {[%emt
00:00:37]} 12. Nxc6 {[%clk 00:47:33]} {[%emt 00:12:26]} Nxf4 {[%clk 01:31:34]}
{[%emt 00:00:09]} 13. Nxe7 {[%clk 00:47:37]} {[%emt 00:00:25]} Nxg2 {[%clk
01:32:00]} {[%emt 00:00:04]} 14. Kxg2 {[%clk 00:37:00]} {[%emt 00:11:08]} Qc5
{[%clk 01:22:21]} {[%emt 00:10:09]} 15. Rac1 {[%clk 00:31:08]} {[%emt
00:06:22]} Kxe7 {[%clk 01:17:25]} {[%emt 00:05:25]} 16. Kg1 {[%clk 00:26:20]}
{[%emt 00:05:18]} Bc6 {[%clk 01:08:45]} {[%emt 00:09:11]} 17. Nd2 {[%clk
00:18:19]} {[%emt 00:08:31]} Qd5 {[%clk 00:54:16]} {[%emt 00:14:59]} 18. Qa3+
{[%clk 00:11:04]} {[%emt 00:07:45]} Ke8 {[%clk 00:33:34]} {[%emt 00:21:11]} 19.
f3 {[%clk 00:10:50]} {[%emt 00:00:44]} f6 {[%clk 00:30:29]} {[%emt 00:03:35]}
20. Rc5 {[%clk 00:10:04]} {[%emt 00:01:17]} Qd7 {[%clk 00:29:39]} {[%emt
00:01:19]} 21. Rfc1 {[%clk 00:10:03]} {[%emt 00:00:32]} Kf7 {[%clk 00:28:54]}
{[%emt 00:01:14]} 22. Nc4 {[%clk 00:08:55]} {[%emt 00:01:38]} Qe7 {[%clk
00:21:04]} {[%emt 00:08:20]} 23. Na5 {[%clk 00:08:24]} {[%emt 00:01:01]} Rhc8
{[%clk 00:20:24]} {[%emt 00:01:10]} 24. Qd3 {[%clk 00:07:40]} {[%emt 00:01:14]}
Qd6 {[%clk 00:10:55]} {[%emt 00:09:58]} 25. R5c4 {[%clk 00:05:00]} {[%emt
00:03:11]} Bb5 {[%clk 00:06:26]} {[%emt 00:04:59]} 26. Nxb7 {[%clk 00:04:40]}
{[%emt 00:00:50]} Qb6 {[%clk 00:05:53]} {[%emt 00:01:03]} 27. Qb3 {[%clk
00:03:48]} {[%emt 00:01:23]} Bxc4 {[%clk 00:04:14]} {[%emt 00:02:09]} 0-1

[Event "Hoogeveen Open 2023"]
[Site "Hoogeveen, Netherlands"]
[Date "2023.10.28"]
[Round "9.16"]
[White "Vogel, Jaap"]
[Black "Hoffman, Ron"]
[Result "1/2-1/2"]
[TimeControl "90min/40moves + 30min + 30sec/move"]
[WhiteFideId "1000764"]
[BlackFideId "1007599"]
[WhiteElo "2106"]
[BlackElo "2032"]

1. d4 {[%clk 01:30:58]} {[%emt 00:00:01]} Nf6 {[%emt 00:00:29]} 2. Nf3 {[%clk
01:31:16]} b6 {[%clk 01:30:58]} {[%emt 00:00:14]} 3. c4 {[%clk 01:28:21]}
{[%emt 00:03:26]} Bb7 {[%clk 01:31:08]} {[%emt 00:00:17]} 4. Nc3 {[%clk
01:28:36]} {[%emt 00:00:17]} e6 {[%clk 01:30:55]} {[%emt 00:00:43]} 5. a3
{[%clk 01:25:02]} {[%emt 00:04:06]} Ne4 {[%clk 01:30:09]} {[%emt 00:01:14]} 6.
Qc2 {[%clk 01:20:50]} {[%emt 00:04:42]} Nxc3 {[%clk 01:30:13]} {[%emt
00:00:26]} 7. Qxc3 {[%clk 01:21:14]} {[%emt 00:00:07]} Be7 {[%clk 01:30:05]}
{[%emt 00:00:36]} 8. Bf4 {[%clk 01:13:51]} {[%emt 00:07:55]} O-O {[%clk
01:29:14]} {[%emt 00:01:20]} 9. Rd1 {[%clk 01:12:31]} {[%emt 00:01:50]} a5
{[%clk 01:16:21]} {[%emt 00:13:23]} 10. Qc2 {[%clk 01:05:16]} {[%emt 00:07:46]}
d6 {[%clk 01:11:11]} {[%emt 00:05:39]} 1/2-1/2

[Event "Hoogeveen Open 2023"]
[Site "Hoogeveen, Netherlands"]
[Date "2023.10.28"]
[Round "9.17"]
[White "Boer, Alef"]
[Black "Goudriaan, Rafael"]
[Result "1/2-1/2"]
[TimeControl "90min/40moves + 30min + 30sec/move"]
[WhiteFideId "1007122"]
[BlackFideId "1063162"]
[WhiteElo "2058"]
[BlackElo "2153"]

1. e4 {[%clk 01:29:18]} {[%emt 00:01:41]} c5 {[%clk 01:30:57]} {[%emt
00:00:03]} 2. c3 {[%clk 01:29:41]} {[%emt 00:00:07]} d5 {[%clk 01:31:21]}
{[%emt 00:00:06]} 3. exd5 {[%clk 01:29:50]} {[%emt 00:00:22]} Qxd5 {[%clk
01:31:47]} {[%emt 00:00:05]} 4. Na3 {[%clk 01:29:21]} {[%emt 00:00:58]} Nc6
{[%clk 01:32:10]} {[%emt 00:00:07]} 5. Nf3 {[%clk 01:29:31]} {[%emt 00:00:19]}
Bg4 {[%clk 01:31:42]} {[%emt 00:00:58]} 6. Be2 {[%clk 01:29:46]} {[%emt
00:00:15]} e5 {[%clk 01:32:09]} {[%emt 00:00:04]} 7. d3 {[%clk 01:30:01]}
{[%emt 00:00:15]} f6 {[%clk 01:32:20]} {[%emt 00:00:19]} 8. Nc4 {[%clk
01:30:13]} {[%emt 00:00:18]} Be6 {[%clk 01:31:10]} {[%emt 00:01:40]} 9. O-O
{[%clk 01:30:32]} {[%emt 00:00:11]} Nge7 {[%clk 01:31:18]} {[%emt 00:00:21]} 10.
a3 {[%clk 01:26:21]} {[%emt 00:04:43]} Qd7 {[%clk 01:24:33]} {[%emt 00:07:14]}
11. Re1 {[%clk 01:26:23]} {[%emt 00:00:28]} Nf5 {[%clk 01:16:56]} {[%emt
00:08:07]} 12. Bf1 {[%clk 01:20:37]} {[%emt 00:06:16]} Rd8 {[%clk 01:08:57]}
{[%emt 00:08:29]} 13. Qc2 {[%clk 01:20:58]} {[%emt 00:00:08]} Be7 {[%clk
01:06:20]} {[%emt 00:03:07]} 14. Bd2 {[%clk 01:21:04]} {[%emt 00:00:24]} O-O
{[%clk 00:55:41]} {[%emt 00:11:09]} 15. Rad1 {[%clk 01:18:58]} {[%emt
00:02:36]} b5 {[%clk 00:46:59]} {[%emt 00:09:13]} 16. Ne3 {[%clk 01:18:56]}
{[%emt 00:00:32]} a5 {[%clk 00:41:15]} {[%emt 00:06:14]} 17. a4 {[%clk
01:17:20]} {[%emt 00:02:07]} b4 {[%clk 00:37:13]} {[%emt 00:04:32]} 18. Nc4
{[%clk 01:17:36]} {[%emt 00:00:13]} Rb8 {[%clk 00:31:00]} {[%emt 00:06:43]} 19.
Bc1 {[%clk 01:10:42]} {[%emt 00:07:24]} Rfd8 {[%clk 00:24:28]} {[%emt
00:07:02]} 20. Nfd2 {[%clk 01:09:04]} {[%emt 00:02:08]} Nd6 {[%clk 00:23:57]}
{[%emt 00:01:01]} 21. Nxd6 {[%clk 00:53:01]} {[%emt 00:16:33]} b3 {[%clk
00:24:06]} {[%emt 00:00:21]} 22. Qb1 {[%clk 00:53:21]} {[%emt 00:00:10]} Bxd6
{[%clk 00:24:20]} {[%emt 00:00:16]} 23. Nc4 {[%clk 00:53:29]} {[%emt 00:00:22]}
Bf8 {[%clk 00:22:53]} {[%emt 00:01:56]} 24. Be3 {[%clk 00:53:40]} {[%emt
00:00:19]} Qf7 {[%clk 00:20:41]} {[%emt 00:02:43]} 25. Na3 {[%clk 00:50:28]}
{[%emt 00:03:42]} Na7 {[%clk 00:20:44]} {[%emt 00:00:27]} 26. Qa1 {[%clk
00:48:28]} {[%emt 00:02:31]} Qd7 {[%clk 00:15:16]} {[%emt 00:05:57]} 27. d4
{[%clk 00:37:08]} {[%emt 00:11:49]} Qxa4 {[%clk 00:08:44]} {[%emt 00:07:03]} 28.
d5 {[%clk 00:37:19]} {[%emt 00:00:19]} Bg4 {[%clk 00:08:21]} {[%emt 00:00:52]}
29. f3 {[%clk 00:37:28]} {[%emt 00:00:21]} Bh5 {[%clk 00:08:08]} {[%emt
00:00:44]} 30. c4 {[%clk 00:37:54]} {[%emt 00:00:04]} Bd6 {[%clk 00:07:54]}
{[%emt 00:00:43]} 31. Bd3 {[%clk 00:37:22]} {[%emt 00:01:01]} Rb4 {[%clk
00:06:28]} {[%emt 00:01:57]} 32. Qb1 {[%clk 00:36:32]} {[%emt 00:01:21]} h6
{[%clk 00:06:21]} {[%emt 00:00:36]} 33. Qc1 {[%clk 00:36:07]} {[%emt 00:00:55]}
Qe8 {[%clk 00:06:13]} {[%emt 00:00:38]} 34. Bd2 {[%clk 00:36:06]} {[%emt
00:00:30]} Ra4 {[%clk 00:05:56]} {[%emt 00:00:49]} 35. Bc3 {[%clk 00:26:01]}
{[%emt 00:10:34]} Rb8 {[%clk 00:03:53]} {[%emt 00:02:32]} 36. Qd2 {[%clk
00:22:57]} {[%emt 00:03:35]} Qd8 {[%clk 00:04:02]} {[%emt 00:00:21]} 37. Ra1
{[%clk 00:22:51]} {[%emt 00:00:36]} Be8 {[%clk 00:03:53]} {[%emt 00:00:38]} 38.
Qe3 {[%clk 00:22:48]} {[%emt 00:00:34]} Qc7 {[%clk 00:01:43]} {[%emt 00:02:40]}
39. Qe4 {[%clk 00:23:08]} {[%emt 00:00:11]} g6 {[%clk 00:01:33]} {[%emt
00:00:40]} 40. g4 {[%clk 00:20:06]} {[%emt 00:03:31]} Qg7 {[%clk 00:00:44]}
{[%emt 00:01:20]} 41. Kh1 {[%clk 00:18:34]} {[%emt 00:02:01]} g5 {[%clk
00:29:42]} {[%emt 00:01:32]} 42. Kg2 {[%clk 00:48:10]} {[%emt 00:00:54]} Nc8
{[%clk 00:28:32]} {[%emt 00:01:40]} 43. Qe3 {[%clk 00:42:20]} {[%emt 00:06:21]}
Ne7 {[%clk 00:21:02]} {[%emt 00:07:59]} 44. Qd2 {[%clk 00:40:37]} {[%emt
00:02:14]} h5 {[%clk 00:17:25]} {[%emt 00:04:06]} 45. h3 {[%clk 00:40:53]}
{[%emt 00:00:15]} Bg6 {[%clk 00:15:21]} {[%emt 00:02:33]} 46. Nb5 {[%clk
00:38:13]} {[%emt 00:03:10]} Rxa1 {[%clk 00:15:09]} {[%emt 00:00:43]} 47. Rxa1
{[%clk 00:38:34]} {[%emt 00:00:08]} Rxb5 {[%clk 00:15:26]} {[%emt 00:00:14]} 48.
cxb5 {[%clk 00:38:53]} {[%emt 00:00:11]} Bxd3 {[%clk 00:14:53]} {[%emt
00:01:03]} 49. Qxd3 {[%clk 00:39:16]} {[%emt 00:00:07]} Ng6 {[%clk 00:15:18]}
{[%emt 00:00:04]} 50. Bd2 {[%clk 00:37:23]} {[%emt 00:02:23]} Nh4+ {[%clk
00:15:41]} {[%emt 00:00:07]} 51. Kf1 {[%clk 00:35:16]} {[%emt 00:02:37]} hxg4
{[%clk 00:15:11]} {[%emt 00:01:00]} 52. hxg4 {[%clk 00:34:56]} {[%emt
00:00:51]} f5 {[%clk 00:12:14]} {[%emt 00:03:27]} 53. Rxa5 {[%clk 00:31:38]}
{[%emt 00:03:48]} e4 {[%clk 00:11:53]} {[%emt 00:00:50]} 54. Ra8+ {[%clk
00:31:32]} {[%emt 00:00:38]} Bf8 {[%clk 00:11:46]} {[%emt 00:00:37]} 55. fxe4
{[%clk 00:31:13]} {[%emt 00:00:48]} fxg4 {[%clk 00:11:39]} {[%emt 00:00:35]} 56.
Qe3 {[%clk 00:25:04]} {[%emt 00:06:40]} Qf6+ {[%clk 00:11:13]} {[%emt
00:00:55]} 57. Ke2 {[%clk 00:21:23]} {[%emt 00:04:12]} Nf3 {[%clk 00:07:48]}
{[%emt 00:03:55]} 58. Bc3 {[%clk 00:08:35]} {[%emt 00:13:18]} Qh6 {[%clk
00:04:57]} {[%emt 00:03:21]} 59. Qxc5 {[%clk 00:05:39]} {[%emt 00:03:27]} Qh2+
{[%clk 00:05:17]} {[%emt 00:00:09]} 60. Kd3 {[%clk 00:05:49]} {[%emt 00:00:20]}
Qc2+ {[%clk 00:05:23]} {[%emt 00:00:25]} 61. Ke3 {[%clk 00:03:35]} {[%emt
00:02:44]} Qc1+ {[%clk 00:05:15]} {[%emt 00:00:38]} 62. Ke2 {[%clk 00:03:11]}
{[%emt 00:00:53]} Qc2+ {[%clk 00:02:53]} {[%emt 00:02:52]} 63. Ke3 {[%clk
00:02:56]} {[%emt 00:00:44]} Qc1+ {[%clk 00:03:16]} {[%emt 00:00:09]} 1/2-1/2